lending/lending_fUSD_20250409
["ID","MTS","AMOUNT","RATE_DAILY","PERIOD"]
[357603426,1744228261884,-532.88,0.00038356,2]
[357603427,1744228261894,-500.0,0.00038356,2]
[357603428,1744228261904,-500.0,0.00038356,2]
[357603429,1744228261914,-500.0,0.00038356,2]
[357603430,1744228261924,-151.0,0.00038356,7]
[357603431,1744228261934,-619.14,0.00038356,2]
[357603432,1744228261944,-500.0,0.00038356,2]
[357603433,1744228261954,-500.0,0.00038356,2]
[357603434,1744228261964,-500.0,0.00038356,2]
[357603435,1744228261974,-500.0,0.00038356,2]
[357603436,1744228261984,-875.6,0.00038356,2]
[357603437,1744228261995,-500.0,0.00038356,2]
[357603438,1744228262007,-500.0,0.00038356,2]
[357603439,1744228262017,-500.0,0.00038356,2]
[357603440,1744228262027,-309.10275423,0.00038356,2]
[357603441,1744228262037,-500.0,0.00038356,2]
[357603442,1744228262047,-1395.96,0.00038356,2]
[357603443,1744228262056,-1206.48,0.00038356,2]
[357603444,1744228262066,-524.29914482,0.00038356,2]
[357603445,1744228262077,-500.0,0.00038356,2]
[357603446,1744228262087,-613.17,0.00038356,2]
[357603447,1744228262096,-1123.65,0.00038356,2]
[357603448,1744228262106,-509.44,0.00038356,2]
[357603449,1744228262115,-500.0,0.00038356,2]
[357603450,1744228262125,-500.0,0.00038356,2]
[357603451,1744228262135,-1724.57,0.00038356,2]
[357603452,1744228262145,-682.68,0.00038356,2]
[357603453,1744228262155,-500.0,0.00038356,2]
[357603454,1744228262165,-500.0,0.00038356,2]
[357603455,1744228262177,-816.34,0.00038356,2]
[357603456,1744228262188,-627.56,0.00038356,2]
[357603457,1744228262197,-500.0,0.00038356,2]
[357603458,1744228262207,-500.0,0.00038356,2]
[357603459,1744228262218,-500.0,0.00038356,2]
[357603460,1744228262228,-500.0,0.00038356,2]
[357603461,1744228262238,-4419.8,0.00038356,2]
[357603462,1744228262249,-500.0,0.00038356,2]
[357603463,1744228262259,-947.2,0.00038356,2]
[357603464,1744228262269,-882.82,0.00038356,2]
[357603465,1744228262278,-815.14,0.00038356,2]
[357603466,1744228262288,-500.0,0.00038356,2]
[357603467,1744228262299,-500.0,0.00038356,2]
[357603468,1744228262308,-500.0,0.00038356,2]
[357603469,1744228262319,-1712.03,0.00038356,2]
[357603470,1744228262329,-728.53,0.00038356,2]
[357603471,1744228262339,-500.0,0.00038356,2]
[357603472,1744228262348,-24804.23,0.00038356,2]
[357603473,1744228262358,-500.0,0.00038356,2]
[357603474,1744228262367,-512.33,0.00038356,2]
[357603475,1744228262377,-500.0,0.00038356,2]
[357603476,1744228262386,-1056.57,0.00038356,2]
[357603477,1744228262396,-500.0,0.00038356,2]
[357603478,1744228262405,-500.0,0.00038356,2]
[357603479,1744228262416,-500.0,0.00038356,2]
[357603480,1744228262429,-723.69,0.00038356,2]
[357603481,1744228262439,-500.0,0.00038356,2]
[357603482,1744228262448,-1883.69,0.00038356,2]
[357603483,1744228262459,-808.31,0.00038356,2]
[357603484,1744228262469,-500.0,0.00038356,2]
[357603485,1744228262479,-1744.86,0.00038356,2]
[357603486,1744228262488,-500.0,0.00038356,2]
[357603487,1744228262498,-500.0,0.00038356,2]
[357603488,1744228262507,-512.97263836,0.00038356,2]
[357603489,1744228262517,-500.0,0.00038356,2]
[357603490,1744228262527,-500.0,0.00038356,2]
[357603491,1744228262537,-500.0,0.00038356,2]
[357603492,1744228262547,-500.0,0.00038356,2]
[357603493,1744228262557,-500.0,0.00038356,2]
[357603494,1744228262567,-737.25,0.00038356,2]
[357603495,1744228262577,-502.02780428,0.00038356,2]
[357603496,1744228262587,-500.0,0.00038356,2]
[357603497,1744228262597,-500.0,0.00038356,2]
[357603498,1744228262606,-500.0,0.00038356,2]
[357603499,1744228262616,-505.41612557,0.00038356,2]
[357603500,1744228262626,-500.0,0.00038356,2]
[357603501,1744228262637,-500.0,0.00038356,2]
[357603502,1744228262647,-500.0,0.00038356,2]
[357603503,1744228262657,-500.0,0.00038356,2]
[357603504,1744228262667,-597.76,0.00038356,2]
[357603505,1744228262679,-509.5901533,0.00038356,2]
[357603506,1744228262690,-500.0,0.00038356,120]
[357603507,1744228262700,-500.0,0.00038356,2]
[357603508,1744228262710,-500.0,0.00038356,2]
[357603509,1744228262721,-1664.48,0.00038356,2]
[357603510,1744228262732,-1316.41,0.00038356,2]
[357603511,1744228262741,-500.0,0.00038356,2]
[357603512,1744228262752,-500.0,0.00038356,2]
[357603513,1744228262762,-500.0,0.00038356,2]
[357603514,1744228262772,-500.0,0.00038356,2]
[357603515,1744228262782,-259.85712825,0.00038356,2]
[357603516,1744228262793,-500.0,0.00038356,2]
[357603517,1744228262803,-500.0,0.00038356,2]
[357603518,1744228262814,-1080.2,0.00038356,2]
[357603519,1744228262824,-879.34,0.00038356,2]
[357603520,1744228262835,-500.0,0.00038356,2]
[357603521,1744228262844,-579.11,0.00038356,2]
[357603522,1744228262854,-525.37379887,0.00038356,2]
[357603523,1744228262864,-249.78149964,0.00038356,2]
[357603524,1744228263854,-742.52850036,0.00038356,2]
[357603525,1744228263867,-500.0,0.00038356,2]
[357603526,1744228263879,-500.0,0.00038356,2]
[357603527,1744228263889,-2687.43,0.00038356,2]
[357603528,1744228263899,-500.0,0.00038356,2]
[357603529,1744228263910,-500.0,0.00038356,2]
[357603530,1744228263920,-569.86388203,0.00038356,2]
[357603531,1744228263935,-593.16,0.00038356,2]
[357603532,1744228263944,-500.0,0.00038356,2]
[357603533,1744228263953,-500.0,0.00038356,2]
[357603534,1744228263962,-500.0,0.00038356,2]
[357603535,1744228263971,-500.0,0.00038356,2]
[357603536,1744228263981,-631.65,0.00038356,2]
[357603537,1744228263991,-500.0,0.00038356,2]
[357603538,1744228264002,-684.43,0.00038356,2]
[357603539,1744228264013,-500.0,0.00038356,2]
[357603540,1744228264023,-500.0,0.00038356,2]
[357603541,1744228264032,-500.0,0.00038356,2]
[357603542,1744228264044,-1257.25,0.00038356,2]
[357603543,1744228264053,-2733.56,0.00038356,2]
[357603544,1744228264063,-1314.88,0.00038356,2]
[357603545,1744228264074,-500.0,0.00038356,2]
[357603546,1744228264088,-151.0,0.00038356,7]
[357603547,1744228264101,-1074.74,0.00038356,2]
[357603548,1744228264112,-500.0,0.00038356,2]
[357603549,1744228264122,-500.0,0.00038356,2]
[357603550,1744228264132,-500.0,0.00038356,2]
[357603551,1744228264143,-500.0,0.00038356,2]
[357603552,1744228264154,-500.0,0.00038356,2]
[357603553,1744228264165,-500.0,0.00038356,2]
[357603554,1744228264179,-151.0,0.00038356,7]
[357603555,1744228264190,-512.27123654,0.00038356,2]
[357603556,1744228264200,-1322.25,0.00038356,2]
[357603557,1744228264210,-500.0,0.00038356,2]
[357603558,1744228264220,-500.0,0.00038356,2]
[357603559,1744228264231,-500.0,0.00038356,2]
[357603560,1744228264241,-2173.13,0.00038356,2]
[357603561,1744228264256,-659.2,0.00038356,2]
[357603562,1744228264266,-944.91,0.00038356,2]
[357603563,1744228264276,-1334.61,0.00038356,2]
[357603564,1744228264286,-500.54158057,0.00038356,2]
[357603565,1744228264296,-500.0,0.00038356,2]
[357603566,1744228264306,-151.0,0.00038356,7]
[357603567,1744228264317,-861.96,0.00038356,2]
[357603568,1744228264327,-607.35,0.00038356,2]
[357603569,1744228264337,-500.0,0.00038356,2]
[357603570,1744228264347,-1014.13,0.00038356,2]
[357603571,1744228264356,-500.0,0.00038356,2]
[357603572,1744228264366,-3019.16,0.00038356,2]
[357603573,1744228264376,-505.80312548,0.00038356,2]
[357603574,1744228264386,-500.0,0.00038356,2]
[357603575,1744228264396,-667.05,0.00038356,2]
[357603576,1744228264407,-500.0,0.00038356,2]
[357603577,1744228264417,-500.0,0.00038356,2]
[357603578,1744228264430,-808.77,0.00038356,2]
[357603579,1744228264440,-500.0,0.00038356,2]
[357603580,1744228264451,-500.0,0.00038356,2]
[357603581,1744228264462,-2000.0,0.00038356,30]
[357603582,1744228264472,-513.0,0.00038356,2]
[357603583,1744228264484,-1307.08,0.00038356,2]
[357603584,1744228264495,-500.0,0.00038356,2]
[357603585,1744228264506,-555.73,0.00038356,2]
[357603586,1744228264517,-378.94,0.00038356,2]
[357603587,1744228264528,-1047.39,0.00038356,2]
[357603588,1744228264538,-503.08747415,0.00038356,2]
[357603589,1744228264548,-829.81,0.00038356,2]
[357603590,1744228264559,-456.08685791,0.00038356,2]
[357603591,1744228264569,-510.72418547,0.00038356,2]
[357603592,1744228264579,-500.0,0.00038356,2]
[357603593,1744228264588,-500.0,0.00038356,2]
[357603594,1744228264598,-500.0,0.00038356,2]
[357603595,1744228264608,-500.0,0.00038356,2]
[357603596,1744228264618,-500.0,0.00038356,2]
[357603597,1744228264627,-2229.29,0.00038356,2]
[357603598,1744228264637,-500.0,0.00038356,2]
[357603599,1744228264647,-500.0,0.00038356,2]
[357603600,1744228264657,-500.0,0.00038356,2]
[357603601,1744228264667,-500.0,0.00038356,2]
[357603602,1744228264679,-500.0,0.00038356,2]
[357603603,1744228264690,-2848.16,0.00038356,2]
[357603604,1744228264700,-573.41,0.00038356,2]
[357603605,1744228264711,-500.99277112,0.00038356,2]
[357603606,1744228264721,-507.53649235,0.00038356,2]
[357603607,1744228264731,-1220.94,0.00038356,2]
[357603608,1744228264741,-500.0,0.00038356,2]
[357603609,1744228264751,-500.0,0.00038356,2]
[357603610,1744228264761,-500.0,0.00038356,2]
[357603611,1744228264772,-500.0,0.00038356,2]
[357603612,1744228264782,-506.60028891,0.00038356,2]
[357603613,1744228264792,-500.0,0.00038356,2]
[357603614,1744228264802,-1070.25,0.00038356,2]
[357603615,1744228264812,-4741.2,0.00038356,2]
[357603616,1744228264822,-698.08,0.00038356,2]
[357603617,1744228264832,-260.55148059,0.00038356,2]
[357603618,1744228264842,-1047.93,0.00038356,2]
[357603619,1744228264852,-500.0,0.00038356,2]
[357603620,1744228264862,-500.0,0.00038356,2]
[357603621,1744228264874,-178580.58,0.00038356,2]
[357603622,1744228264884,-500.0,0.00038356,2]
[357603623,1744228264894,-500.0,0.00038356,2]
[357603624,1744228264904,-503.32545104,0.00038356,2]
[357603625,1744228264914,-500.0,0.00038356,2]
[357603626,1744228264924,-504.99607801,0.00038356,2]
[357603627,1744228264935,-500.0,0.00038356,2]
[357603628,1744228264945,-786.38,0.00038356,2]
[357603629,1744228264955,-500.0,0.00038356,2]
[357603630,1744228264966,-500.0,0.00038356,2]
[357603631,1744228264976,-500.0,0.00038356,2]
[357603632,1744228264986,-500.0,0.00038356,2]
[357603633,1744228265001,-506.86933914,0.00038356,2]
[357603634,1744228265015,-824.77,0.00038356,2]
[357603635,1744228265026,-500.0,0.00038356,2]
[357603636,1744228265036,-500.0,0.00038356,2]
[357603637,1744228265048,-5100.34,0.00038356,2]
[357603638,1744228265057,-500.0,0.00038356,2]
[357603639,1744228265067,-500.0,0.00038356,2]
[357603640,1744228265077,-500.0,0.00038356,2]
[357603641,1744228265089,-500.0,0.00038356,2]
[357603642,1744228265100,-500.0,0.00038356,2]
[357603643,1744228265111,-500.0,0.00038356,2]
[357603644,1744228265121,-500.0,0.00038356,2]
[357603645,1744228265131,-1083.97,0.00038356,2]
[357603646,1744228265140,-500.0,0.00038356,2]
[357603647,1744228265150,-502.5333739,0.00038356,2]
[357603648,1744228265159,-500.0,0.00038356,2]
[357603649,1744228265168,-500.0,0.00038356,2]
[357603650,1744228265179,-1590.0,0.00038356,2]
[357603651,1744228265188,-500.0,0.00038356,2]
[357603652,1744228265198,-500.0,0.00038356,2]
[357603653,1744228265208,-500.0,0.00038356,2]
[357603654,1744228265218,-500.0,0.00038356,2]
[357603655,1744228265227,-500.0,0.00038356,2]
[357603656,1744228265237,-500.0,0.00038356,2]
[357603657,1744228265246,-500.0,0.00038356,2]
[357603658,1744228265256,-500.0,0.00038356,2]
[357603659,1744228265265,-500.0,0.00038356,2]
[357603660,1744228265275,-500.0,0.00038356,2]
[357603661,1744228265284,-505.54463804,0.00038356,2]
[357603662,1744228265294,-239.52119765,0.00038356,2]
[357603663,1744228265303,-500.0,0.00038356,2]
[357603664,1744228265312,-500.0,0.00038356,2]
[357603665,1744228265322,-500.0,0.00038356,2]
[357603666,1744228265331,-2635.65,0.00038356,2]
[357603667,1744228265341,-745.36,0.00038356,2]
[357603668,1744228265350,-500.0,0.00038356,2]
[357603669,1744228265360,-500.0,0.00038356,2]
[357603670,1744228265369,-500.0,0.00038356,2]
[357603671,1744228265379,-500.0,0.00038356,2]
[357603672,1744228265389,-500.0,0.00038356,2]
[357603673,1744228265398,-500.0,0.00038356,2]
[357603674,1744228265407,-1000.0,0.00038356,2]
[357603675,1744228265416,-500.0,0.00038356,2]
[357603676,1744228265427,-576.26666076,0.00038356,2]
[357603677,1744228265436,-500.0,0.00038356,2]
[357603678,1744228265446,-500.0,0.00038356,2]
[357603679,1744228265455,-500.0,0.00038356,2]
[357603680,1744228265464,-155.444119,0.00038356,7]
[357603681,1744228265474,-500.0,0.00038356,2]
[357603682,1744228265484,-500.0,0.00038356,2]
[357603683,1744228265493,-500.0,0.00038356,2]
[357603684,1744228265503,-500.0,0.00038356,2]
[357603685,1744228265512,-500.0,0.00038356,2]
[357603686,1744228265522,-502.86161772,0.00038356,2]
[357603687,1744228265531,-155.444119,0.00038356,7]
[357603688,1744228265541,-500.0,0.00038356,2]
[357603689,1744228265550,-500.0,0.00038356,2]
[357603690,1744228265559,-500.0,0.00038356,2]
[357603691,1744228265569,-500.0,0.00038356,2]
[357603692,1744228265579,-1248.82,0.00038356,2]
[357603693,1744228265588,-502.80762488,0.00038356,2]
[357603694,1744228265597,-500.0,0.00038356,2]
[357603695,1744228265607,-500.0,0.00038356,2]
[357603696,1744228265616,-156.909408,0.00038356,7]
[357603697,1744228265626,-548.160426,0.00038356,7]
[357603698,1744228265635,-618.31,0.00038356,2]
[357603699,1744228265645,-500.0,0.00038356,2]
[357603700,1744228265655,-500.0,0.00038356,2]
[357603701,1744228265664,-505.89498959,0.00038356,2]
[357603702,1744228265674,-500.0,0.00038356,2]
[357603703,1744228265684,-505.29196226,0.00038356,2]
[357603704,1744228265694,-502.82516873,0.00038356,2]
[357603705,1744228265704,-500.0,0.00038356,2]
[357603706,1744228265714,-500.0,0.00038356,2]
[357603707,1744228265724,-500.0,0.00038356,2]
[357603708,1744228265734,-548.160426,0.00038356,7]
[357603709,1744228265743,-500.0,0.00038356,2]
[357603710,1744228265753,-724.7,0.00038356,2]
[357603711,1744228265763,-217.31493839,0.00038356,2]
[357603712,1744228265772,-156.909408,0.00038356,7]
[357603713,1744228265781,-500.0,0.00038356,2]
[357603714,1744228265791,-500.0,0.00038356,2]
[357603715,1744228265801,-591.19,0.00038356,2]
[357603716,1744228265811,-500.0,0.00038356,2]
[357603717,1744228265821,-500.0,0.00038356,2]
[357603718,1744228265830,-500.0,0.00038356,2]
[357603719,1744228265839,-1283.47,0.00038356,2]
[357603720,1744228265849,-537.03,0.00038356,2]
[357603721,1744228265858,-505.49576019,0.00038356,2]
[357603722,1744228265867,-500.0,0.00038356,2]
[357603723,1744228265877,-500.0,0.00038356,2]
[357603724,1744228265887,-954.92,0.00038356,2]
[357603725,1744228265897,-532.66,0.00038356,2]
[357603726,1744228265906,-500.0,0.00038356,2]
[357603727,1744228265915,-550.37,0.00038356,2]
[357603728,1744228265928,-4688.01,0.00038356,2]
[357603729,1744228265938,-828.59,0.00038356,2]
[357603730,1744228265947,-501.70190084,0.00038356,2]
[357603731,1744228265957,-500.0,0.00038356,2]
[357603732,1744228265967,-500.0,0.00038356,2]
[357603733,1744228265976,-502.4867266,0.00038356,2]
[357603734,1744228265986,-500.0,0.00038356,2]
[357603735,1744228266100,-500.0,0.00038356,2]
[357603736,1744228266112,-500.0,0.00038356,2]
[357603737,1744228266123,-500.0,0.00038356,2]
[357603738,1744228266134,-2174.47,0.00038356,2]
[357603739,1744228266145,-511.93823856,0.00038356,2]
[357603740,1744228266156,-1370.32,0.00038356,2]
[357603741,1744228266167,-500.0,0.00038356,2]
[357603742,1744228266184,-660.6,0.00038356,2]
[357603743,1744228266195,-503.22031782,0.00038356,2]
[357603744,1744228266205,-500.0,0.00038356,2]
[357603745,1744228266216,-716.56,0.00038356,2]
[357603746,1744228266227,-500.0,0.00038356,2]
[357603747,1744228266238,-500.0,0.00038356,2]
[357603748,1744228266249,-500.0,0.00038356,2]
[357603749,1744228266260,-500.0,0.00038356,2]
[357603750,1744228266271,-573.4,0.00038356,2]
[357603751,1744228266281,-500.0,0.00038356,2]
[357603752,1744228266292,-503.06877214,0.00038356,2]
[357603753,1744228266303,-751.48,0.00038356,2]
[357603754,1744228266314,-500.0,0.00038356,2]
[357603755,1744228266324,-503.55200365,0.00038356,2]
[357603756,1744228266334,-500.75464868,0.00038356,2]
[357603757,1744228266344,-500.0,0.00038356,2]
[357603758,1744228266354,-529.18,0.00038356,2]
[357603759,1744228266364,-501.205676,0.00038356,2]
[357603760,1744228266374,-2201.14,0.00038356,2]
[357603761,1744228266385,-2039.13,0.00038356,2]
[357603762,1744228266395,-500.0,0.00038356,2]
[357603763,1744228266404,-500.0,0.00038356,2]
[357603764,1744228266414,-500.0,0.00038356,2]
[357603765,1744228266423,-500.0,0.00038356,2]
[357603766,1744228266436,-500.0,0.00038356,2]
[357603767,1744228266446,-500.0,0.00038356,2]
[357603768,1744228266456,-500.0,0.00038356,2]
[357603769,1744228266466,-510.83,0.00038356,2]
[357603770,1744228266476,-500.0,0.00038356,2]
[357603771,1744228266486,-500.0,0.00038356,7]
[357603772,1744228266496,-500.0,0.00038356,2]
[357603773,1744228266506,-500.0,0.00038356,2]
[357603774,1744228266517,-793.62,0.00038356,2]
[357603775,1744228266527,-500.0,0.00038356,2]
[357603776,1744228266537,-500.0,0.00038356,2]
[357603777,1744228266548,-500.0,0.00038356,2]
[357603778,1744228266559,-500.0,0.00038356,2]
[357603779,1744228266570,-500.0,0.00038356,2]
[357603780,1744228266580,-500.0,0.00038356,2]
[357603781,1744228266590,-526.72668899,0.00038356,2]
[357603782,1744228266600,-552.8761168,0.00038356,2]
[357603783,1744228266610,-151.0,0.00038356,7]
[357603784,1744228266619,-500.0,0.00038356,2]
[357603785,1744228266629,-500.0,0.00038356,2]
[357603786,1744228266639,-500.0,0.00038356,2]
[357603787,1744228266648,-1117.24,0.00038356,2]
[357603788,1744228266657,-282.78281036,0.00038356,2]
[357603789,1744228266667,-5270.88,0.00038356,2]
[357603790,1744228266677,-2981.205234,0.00038356,7]
[357603791,1744228266687,-500.0,0.00038356,2]
[357603792,1744228266697,-776.97,0.00038356,2]
[357603793,1744228266708,-500.0,0.00038356,2]
[357603794,1744228266719,-547.53,0.00038356,2]
[357603795,1744228266729,-500.0,0.00038356,2]
[357603796,1744228266740,-388.16595939,0.00038356,2]
[357603797,1744228266752,-500.0,0.00038356,2]
[357603798,1744228266762,-500.0,0.00038356,2]
[357603799,1744228266772,-500.0,0.00038356,2]
[357603800,1744228266781,-500.0,0.00038356,2]
[357603801,1744228266791,-235.32297,0.00038356,7]
[357603802,1744228266800,-502.34282739,0.00038356,2]
[357603803,1744228266809,-500.92001402,0.00038356,2]
[357603804,1744228266819,-716.6,0.00038356,2]
[357603805,1744228266828,-2981.205234,0.00038356,7]
[357603806,1744228266838,-500.0,0.00038356,2]
[357603807,1744228266848,-500.0,0.00038356,2]
[357603808,1744228266857,-500.0,0.00038356,2]
[357603809,1744228266867,-500.0,0.00038356,2]
[357603810,1744228266877,-1231.14,0.00038356,2]
[357603811,1744228266887,-500.0,0.00038356,2]
[357603812,1744228266898,-500.0,0.00038356,2]
[357603813,1744228266907,-525.27502563,0.00038356,2]
[357603814,1744228266917,-985.47,0.00038356,2]
[357603815,1744228266928,-985.47,0.00038356,2]
[357603816,1744228266939,-22257.31,0.00038356,2]
[357603817,1744228266949,-985.47,0.00038356,2]
[357603818,1744228266959,-985.47,0.00038356,2]
[357603819,1744228266969,-535.7849589,0.00038356,2]
[357603820,1744228266978,-500.0,0.00038356,2]
[357603821,1744228266988,-985.47,0.00038356,2]
[357603822,1744228267001,-985.47,0.00038356,2]
[357603823,1744228267011,-500.0,0.00038356,2]
[357603824,1744228267021,-500.0,0.00038356,2]
[357603825,1744228267030,-985.47,0.00038356,2]
[357603826,1744228267042,-985.47,0.00038356,2]
[357603827,1744228267053,-985.47,0.00038356,2]
[357603828,1744228267063,-985.47,0.00038356,2]
[357603829,1744228267073,-985.47,0.00038356,2]
[357603830,1744228267083,-985.47,0.00038356,2]
[357603831,1744228267092,-985.47,0.00038356,2]
[357603832,1744228267101,-985.47,0.00038356,2]
[357603833,1744228267111,-985.47,0.00038356,2]
[357603834,1744228267120,-1105.46,0.00038356,2]
[357603835,1744228267130,-1277.69,0.00038356,2]
[357603836,1744228267140,-500.0,0.00038356,2]
[357603837,1744228267149,-500.0,0.00038356,2]
[357603838,1744228267160,-1168.36,0.00038356,2]
[357603839,1744228267171,-500.0,0.00038356,2]
[357603840,1744228267185,-500.0,0.00038356,2]
[357603841,1744228267195,-509.31093743,0.00038356,2]
[357603842,1744228267205,-241.6879542,0.00038356,2]
[357603843,1744228267216,-1133.16,0.00038356,2]
[357603844,1744228267225,-500.0,0.00038356,2]
[357603845,1744228267235,-500.0,0.00038356,2]
[357603846,1744228267244,-500.0,0.00038356,2]
[357603847,1744228267254,-500.0,0.00038356,2]
[357603848,1744228267263,-233.0273564,0.00038356,2]
[357603849,1744228267273,-151.0,0.00038356,7]
[357603850,1744228267282,-996.74,0.00038356,2]
[357603851,1744228267291,-768.72,0.00038356,2]
[357603852,1744228267301,-500.0,0.00038356,2]
[357603853,1744228267310,-10000.0,0.00038356,2]
[357603854,1744228267320,-194.35997356,0.00038356,2]
[357603855,1744228267329,-500.0,0.00038373,5]
[357603856,1744228267338,-500.0,0.00038373,5]
[357603857,1744228267348,-500.0,0.00038373,5]
[357603858,1744228267357,-500.0,0.00038373,5]
[357603859,1744228267366,-202.29964253,0.00038373,5]
[357603860,1744228267376,-500.0,0.00038373,5]
[357603861,1744228267385,-500.0,0.00038373,5]
[357603862,1744228267394,-150.0,0.00038384,7]
[357603863,1744228267404,-315.38,0.00038443,2]
[357603864,1744228267413,-401.66,0.00038443,2]
[357603865,1744228267423,-151.0,0.0003853,14]
[357603866,1744228267435,-324.0,0.0003854,2]
[357603867,1744228267444,-17720.80735809,0.00038573,2]
[357603868,1744228267453,-300.0,0.00038575,5]
[357603869,1744228267463,-2013.14,0.00038628,2]
[357603870,1744228267472,-151.0,0.00038629,14]
[357603871,1744228267481,-151.0,0.00038629,14]
[357603872,1744228267490,-1067.94,0.00038629,2]
[357603873,1744228267500,-1067.94,0.00038629,2]
[357603874,1744228267510,-1067.94,0.00038629,2]
[357603875,1744228267519,-1067.94,0.00038629,2]
[357603876,1744228267528,-1067.94,0.00038629,2]
[357603877,1744228267538,-2013.14,0.00038629,2]
[357603878,1744228267547,-2013.14,0.00038629,2]
[357603879,1744228267556,-2013.14,0.00038629,2]
[357603880,1744228267565,-150.0,0.00038629,3]
[357603881,1744228267574,-150.0,0.00038629,3]
[357603882,1744228267584,-985.47,0.00038629,2]
[357603883,1744228267594,-985.47,0.00038629,2]
[357603884,1744228267603,-985.47,0.00038629,2]
[357603885,1744228267613,-985.47,0.00038629,2]
[357603886,1744228267622,-985.47,0.00038629,2]
[357603887,1744228267631,-985.47,0.00038629,2]
[357603888,1744228267640,-985.47,0.00038629,2]
[357603889,1744228267650,-985.47,0.00038629,2]
[357603890,1744228267660,-985.68512114,0.00038629,2]
[357603891,1744228267669,-500.0,0.00038629,2]
[357603892,1744228267679,-500.0,0.00038629,2]
[357603893,1744228267689,-500.0,0.00038629,2]
[357603894,1744228267699,-500.0,0.00038629,2]
[357603895,1744228267709,-500.0,0.00038629,2]
[357603896,1744228267718,-500.0,0.00038629,2]
[357603897,1744228267728,-500.0,0.00038629,2]
[357603898,1744228267738,-500.0,0.00038629,2]
[357603899,1744228267748,-500.0,0.00038629,2]
[357603900,1744228267757,-500.0,0.00038629,2]
[357603901,1744228267767,-500.0,0.00038629,2]
[357603902,1744228267776,-500.0,0.00038629,2]
[357603903,1744228267786,-400490.06385546,0.0003863,2]
[357603904,1744228267795,-1151.20868,0.0003863,2]
[357603905,1744228267805,-962.886777,0.0003863,2]
[357603906,1744228267815,-1546.023045,0.0003863,2]
[357603907,1744228267824,-151.0,0.0003863,14]
[357603908,1744228267834,-162.937964,0.0003863,14]
[357603909,1744228267844,-151.0,0.0003863,14]
[357603910,1744228267853,-151.0,0.0003863,14]
[357603911,1744228267862,-151.0,0.0003863,14]
[357603912,1744228267873,-248.514816,0.0003863,14]
[357603913,1744228267882,-151.0,0.0003863,14]
[357603914,1744228267891,-152.672134,0.0003863,14]
[357603915,1744228267901,-151.416823,0.0003863,14]
[357603916,1744228267911,-1246.993629,0.0003863,14]
[357603917,1744228267920,-1246.993629,0.0003863,14]
[357603918,1744228267932,-1246.993629,0.0003863,14]
[357603919,1744228267941,-1246.993629,0.0003863,14]
[357603920,1744228267951,-151.0,0.0003863,14]
[357603921,1744228267960,-151.0,0.0003863,14]
[357603922,1744228267970,-500.0,0.0003863,2]
[357603923,1744228267980,-172.04675696,0.0003863,2]
[357603924,1744228267990,-352.56404627,0.0003863,2]
[357603925,1744228268000,-558.37886815,0.0003863,2]